[Event "Live Chess"]
[Site "Chess.com"]
[Date "2023.05.20"]
[Round "-"]
[White "blunderabit"]
[Black "Horseymobile"]
[Result "0-1"]
[WhiteElo "1856"]
[BlackElo "1232"]
[TimeControl "300"]
[EndTime "13:20:32 PDT"]
[Termination "Horseymobile won on time"]

1. Nf3 {[%clk 0:04:57.4]} 1... d5 {[%clk 0:04:58.7]} 2. b3 {[%clk 0:04:54.7]}
2... c5 {[%clk 0:04:54.8]} 3. e3 {[%clk 0:04:51.5]} 3... Nc6 {[%clk 0:04:53.8]}
4. Bb2 {[%clk 0:04:48.3]} 4... Nf6 {[%clk 0:04:51.2]} 5. Bb5 {[%clk 0:04:31.5]}
5... e6 {[%clk 0:04:36.1]} 6. O-O {[%clk 0:04:24.4]} 6... Bd6 {[%clk 0:04:30.9]}
7. d4 {[%clk 0:04:20.8]} 7... O-O {[%clk 0:04:22.4]} 8. a3 {[%clk 0:04:17.7]}
8... a6 {[%clk 0:04:19.7]} 9. Bd3 {[%clk 0:04:14.8]} 9... Ne4 {[%clk 0:03:58.8]}
10. c4 {[%clk 0:04:09.6]} 10... f5 {[%clk 0:03:16.9]} 11. Ne5 {[%clk 0:03:56.6]}
11... Qc7 {[%clk 0:02:47.2]} 12. f4 {[%clk 0:03:49.4]} 12... Rf6 {[%clk
0:02:21.9]} 13. Nd2 {[%clk 0:03:27.9]} 13... Rh6 {[%clk 0:02:07.7]} 14. Ndf3
{[%clk 0:03:19.6]} 14... Bd7 {[%clk 0:01:53.5]} 15. Rc1 {[%clk 0:02:52.2]} 15...
Nxe5 {[%clk 0:01:15.9]} 16. dxe5 {[%clk 0:02:40]} 16... Be7 {[%clk 0:01:12]} 17.
cxd5 {[%clk 0:02:26.5]} 17... exd5 {[%clk 0:01:08.2]} 18. Rc2 {[%clk 0:02:00.5]}
18... Qb6 {[%clk 0:00:59]} 19. Re2 {[%clk 0:01:33.8]} 19... d4 {[%clk
0:00:33.6]} 20. exd4 {[%clk 0:01:23.1]} 20... cxd4 {[%clk 0:00:30.5]} 21. b4
{[%clk 0:01:18.1]} 21... Nc3 {[%clk 0:00:21.9]} 22. Kh1 {[%clk 0:01:08.4]} 22...
Nxd1 {[%clk 0:00:20.7]} 23. Rxd1 {[%clk 0:01:03]} 23... Rc8 {[%clk 0:00:17.9]}
24. Bxd4 {[%clk 0:01:00.9]} 24... Qc6 {[%clk 0:00:17.4]} 25. h3 {[%clk
0:00:50.2]} 25... Qa4 {[%clk 0:00:15.6]} 26. Rde1 {[%clk 0:00:40.4]} 26... Rhc6
{[%clk 0:00:14.8]} 27. e6 {[%clk 0:00:27.2]} 27... Be8 {[%clk 0:00:13.5]} 28.
Ne5 {[%clk 0:00:25]} 28... Rc1 {[%clk 0:00:11.1]} 29. Be3 {[%clk 0:00:19.2]}
29... Rxe1+ {[%clk 0:00:10]} 30. Rxe1 {[%clk 0:00:18.7]} 30... Qxa3 {[%clk
0:00:08.4]} 31. Bxf5 {[%clk 0:00:11.6]} 31... Bxb4 {[%clk 0:00:07.1]} 32. Re2
{[%clk 0:00:08.1]} 32... Qa1+ {[%clk 0:00:05.7]} 33. Kh2 {[%clk 0:00:06]} 33...
Be1 {[%clk 0:00:04.2]} 34. Nd7 {[%clk 0:00:01.8]} 34... Bxd7 {[%clk 0:00:02.7]}
0-1

[Event "Live Chess"]
[Site "Chess.com"]
[Date "2023.05.20"]
[Round "-"]
[White "Shepherds_Pie"]
[Black "profpirate4"]
[Result "1-0"]
[WhiteElo "1906"]
[BlackElo "1066"]
[TimeControl "300"]
[EndTime "13:20:33 PDT"]
[Termination "Shepherds_Pie won on time"]

1. c4 {[%clk 0:04:49.3]} 1... f5 {[%clk 0:04:58.2]} 2. Nc3 {[%clk 0:04:47.5]}
2... e6 {[%clk 0:04:57.2]} 3. e4 {[%clk 0:04:43.8]} 3... fxe4 {[%clk 0:04:56]}
4. d3 {[%clk 0:04:42.1]} 4... exd3 {[%clk 0:04:54.7]} 5. Bxd3 {[%clk 0:04:41]}
5... Nf6 {[%clk 0:04:54.6]} 6. Qc2 {[%clk 0:04:37.5]} 6... Nc6 {[%clk
0:04:51.2]} 7. a3 {[%clk 0:04:33.8]} 7... d6 {[%clk 0:04:44]} 8. Nge2 {[%clk
0:04:32]} 8... Bd7 {[%clk 0:04:41]} 9. Bg5 {[%clk 0:04:30.6]} 9... Be7 {[%clk
0:04:40]} 10. Bxf6 {[%clk 0:04:27]} 10... Bxf6 {[%clk 0:04:36.2]} 11. Bxh7
{[%clk 0:04:25.1]} 11... Ne5 {[%clk 0:04:25.4]} 12. Bg6+ {[%clk 0:04:20.8]}
12... Nxg6 {[%clk 0:04:23.3]} 13. Qxg6+ {[%clk 0:04:18.1]} 13... Kf8 {[%clk
0:04:21.4]} 14. O-O {[%clk 0:04:12.8]} 14... Be8 {[%clk 0:04:12]} 15. Qd3 {[%clk
0:04:11.1]} 15... Be5 {[%clk 0:04:05.3]} 16. Ng3 {[%clk 0:04:05.5]} 16... Bc6
{[%clk 0:03:56]} 17. b4 {[%clk 0:03:59.6]} 17... Qf6 {[%clk 0:03:48.7]} 18. Nce4
{[%clk 0:03:54.2]} 18... Qh6 {[%clk 0:03:37.1]} 19. h3 {[%clk 0:03:49.6]} 19...
Ke7 {[%clk 0:03:20.3]} 20. Rad1 {[%clk 0:03:45.1]} 20... Raf8 {[%clk 0:03:02.3]}
21. b5 {[%clk 0:03:41.3]} 21... Bxe4 {[%clk 0:02:55.6]} 22. Qxe4 {[%clk
0:03:32.3]} 22... Rf4 {[%clk 0:02:34.9]} 23. Qxb7 {[%clk 0:03:25.6]} 23... Kd7
{[%clk 0:02:28.7]} 24. Qc6+ {[%clk 0:03:20.8]} 24... Ke7 {[%clk 0:02:11.7]} 25.
Qxc7+ {[%clk 0:03:17.9]} 25... Kf6 {[%clk 0:02:10.2]} 26. Qc6 {[%clk 0:03:08.9]}
26... Rg4 {[%clk 0:01:58.6]} 27. Qf3+ {[%clk 0:02:49.7]} 27... Rf4 {[%clk
0:01:48.5]} 28. Qe3 {[%clk 0:02:41.1]} 28... Qh4 {[%clk 0:01:35.5]} 29. c5
{[%clk 0:02:28.3]} 29... d5 {[%clk 0:01:26.9]} 30. Rde1 {[%clk 0:02:22.2]} 30...
Qg5 {[%clk 0:00:37]} 31. c6 {[%clk 0:02:07.8]} 31... Rxh3 {[%clk 0:00:17.6]} 32.
gxh3 {[%clk 0:02:02.7]} 32... Re4 {[%clk 0:00:02.6]} 33. Qf3+ {[%clk 0:01:58.5]}
1-0

[Event "Live Chess"]
[Site "Chess.com"]
[Date "2023.05.20"]
[Round "-"]
[White "Leonid_Starozhilov"]
[Black "tuppyglossop"]
[Result "1-0"]
[WhiteElo "2637"]
[BlackElo "1605"]
[TimeControl "300"]
[EndTime "13:20:35 PDT"]
[Termination "Leonid_Starozhilov won by checkmate"]

1. b3 {[%clk 0:04:59]} 1... d5 {[%clk 0:04:56.4]} 2. Bb2 {[%clk 0:04:58.9]} 2...
Nf6 {[%clk 0:04:55.6]} 3. Nf3 {[%clk 0:04:57.7]} 3... e6 {[%clk 0:04:54.4]} 4.
c4 {[%clk 0:04:57]} 4... dxc4 {[%clk 0:04:52.5]} 5. bxc4 {[%clk 0:04:55.9]} 5...
Be7 {[%clk 0:04:51.6]} 6. g3 {[%clk 0:04:54.5]} 6... c5 {[%clk 0:04:49.3]} 7.
Bg2 {[%clk 0:04:54.1]} 7... Nc6 {[%clk 0:04:48.5]} 8. O-O {[%clk 0:04:53.8]}
8... O-O {[%clk 0:04:47.4]} 9. Nc3 {[%clk 0:04:53.6]} 9... a6 {[%clk 0:04:44.7]}
10. d3 {[%clk 0:04:52.6]} 10... Qc7 {[%clk 0:04:43.3]} 11. Rb1 {[%clk
0:04:50.7]} 11... Rd8 {[%clk 0:04:41.2]} 12. Nd2 {[%clk 0:04:48.2]} 12... b6
{[%clk 0:04:39.1]} 13. Nce4 {[%clk 0:04:44.7]} 13... Bb7 {[%clk 0:04:35.6]} 14.
Nxf6+ {[%clk 0:04:43.7]} 14... Bxf6 {[%clk 0:04:34.2]} 15. Bxf6 {[%clk
0:04:42.3]} 15... gxf6 {[%clk 0:04:34.1]} 16. Ne4 {[%clk 0:04:39]} 16... Kg7
{[%clk 0:04:24.9]} 17. Qd2 {[%clk 0:04:37.7]} 17... Ne5 {[%clk 0:04:20.8]} 18.
Qf4 {[%clk 0:04:34.4]} 18... Qe7 {[%clk 0:04:06.4]} 19. Nxf6 {[%clk 0:04:23.2]}
19... Bxg2 {[%clk 0:03:55.4]} 20. Nh5+ {[%clk 0:04:20.7]} 20... Kf8 {[%clk
0:03:48.7]} 21. Qxe5 {[%clk 0:04:15.9]} 21... Bxf1 {[%clk 0:03:47.2]} 22. Qh8#
{[%clk 0:04:14.5]} 1-0

[Event "Live Chess"]
[Site "Chess.com"]
[Date "2023.05.20"]
[Round "-"]
[White "Delacorta"]
[Black "Wild_Tiger"]
[Result "0-1"]
[WhiteElo "1424"]
[BlackElo "1070"]
[TimeControl "300"]
[EndTime "13:20:38 PDT"]
[Termination "Wild_Tiger won by checkmate"]

1. d4 {[%clk 0:04:57.8]} 1... d5 {[%clk 0:04:56.9]} 2. Nf3 {[%clk 0:04:56.2]}
2... Nc6 {[%clk 0:04:56.6]} 3. e3 {[%clk 0:04:55.6]} 3... Bg4 {[%clk 0:04:54]}
4. h3 {[%clk 0:04:53.1]} 4... Bh5 {[%clk 0:04:51.4]} 5. g4 {[%clk 0:04:51.7]}
5... Bg6 {[%clk 0:04:50.3]} 6. h4 {[%clk 0:04:50.5]} 6... h6 {[%clk 0:04:49.8]}
7. Bd3 {[%clk 0:04:42.6]} 7... Bxd3 {[%clk 0:04:37.5]} 8. Qxd3 {[%clk
0:04:42.4]} 8... Nf6 {[%clk 0:04:35]} 9. Nbd2 {[%clk 0:04:39.5]} 9... Nxg4
{[%clk 0:04:33]} 10. b3 {[%clk 0:04:20.2]} 10... e6 {[%clk 0:04:25.9]} 11. Bb2
{[%clk 0:04:16.5]} 11... Bd6 {[%clk 0:04:19.5]} 12. Rg1 {[%clk 0:04:11.6]} 12...
f5 {[%clk 0:04:10.6]} 13. a3 {[%clk 0:03:48]} 13... Qe7 {[%clk 0:04:08.3]} 14.
c4 {[%clk 0:03:44.5]} 14... dxc4 {[%clk 0:03:49.1]} 15. Nxc4 {[%clk 0:03:42]}
15... Bh2 {[%clk 0:03:36.1]} 16. Nxh2 {[%clk 0:03:32.3]} 16... Nxh2 {[%clk
0:03:35]} 17. Rg3 {[%clk 0:03:13.5]} 17... Qxh4 {[%clk 0:03:10.2]} 18. O-O-O
{[%clk 0:03:02.7]} 18... Ng4 {[%clk 0:02:32.9]} 19. d5 {[%clk 0:02:52.3]} 19...
Nxf2 {[%clk 0:02:17.9]} 20. Qc2 {[%clk 0:01:42]} 20... Nxd1 {[%clk 0:02:13.7]}
21. Rxg7 {[%clk 0:01:37.7]} 21... Nxe3 {[%clk 0:01:58.2]} 22. Nxe3 {[%clk
0:01:12.8]} 22... Qe1+ {[%clk 0:01:40.5]} 23. Nd1 {[%clk 0:01:08.3]} 23... O-O-O
{[%clk 0:01:00.6]} 24. dxc6 {[%clk 0:00:50.6]} 24... bxc6 {[%clk 0:00:58.5]} 25.
Rg2 {[%clk 0:00:31.3]} 25... Rhe8 {[%clk 0:00:50]} 26. Re2 {[%clk 0:00:27.5]}
26... Qh1 {[%clk 0:00:43.2]} 27. Rd2 {[%clk 0:00:24.5]} 27... f4 {[%clk
0:00:36.9]} 28. Qxc6 {[%clk 0:00:19.5]} 28... Rxd2 {[%clk 0:00:31.5]} 29. Kxd2
{[%clk 0:00:18.7]} 29... Rd8+ {[%clk 0:00:28.4]} 30. Kc1 {[%clk 0:00:17.2]}
30... Qxd1# {[%clk 0:00:27.2]} 0-1

[Event "Live Chess"]
[Site "Chess.com"]
[Date "2023.05.20"]
[Round "-"]
[White "1PRK1"]
[Black "booktrunk"]
[Result "1-0"]
[WhiteElo "1384"]
[BlackElo "1285"]
[TimeControl "300"]
[EndTime "13:20:46 PDT"]
[Termination "1PRK1 won by resignation"]

1. e4 {[%clk 0:04:58.1]} 1... d5 {[%clk 0:04:59.9]} 2. exd5 {[%clk 0:04:56.2]}
2... Qxd5 {[%clk 0:04:58.6]} 3. Nc3 {[%clk 0:04:55.7]} 3... Qe6+ {[%clk
0:04:57.2]} 4. Be2 {[%clk 0:04:53.7]} 4... c6 {[%clk 0:04:56]} 5. Nf3 {[%clk
0:04:52.1]} 5... Qd6 {[%clk 0:04:54.4]} 6. O-O {[%clk 0:04:51.2]} 6... Bf5
{[%clk 0:04:52.5]} 7. Re1 {[%clk 0:04:49.6]} 7... Nd7 {[%clk 0:04:49.3]} 8. d4
{[%clk 0:04:43.9]} 8... O-O-O {[%clk 0:04:47.5]} 9. Be3 {[%clk 0:04:36.5]} 9...
e6 {[%clk 0:04:45.8]} 10. a4 {[%clk 0:04:30.4]} 10... Nb6 {[%clk 0:04:44.6]} 11.
a5 {[%clk 0:04:27.5]} 11... Nd5 {[%clk 0:04:43.4]} 12. Nxd5 {[%clk 0:04:26]}
12... exd5 {[%clk 0:04:42.7]} 13. Ng5 {[%clk 0:04:21.4]} 13... Qd7 {[%clk
0:04:35.5]} 14. c4 {[%clk 0:04:11.4]} 14... h6 {[%clk 0:04:33.7]} 15. Nf3 {[%clk
0:04:05.9]} 15... dxc4 {[%clk 0:04:30.2]} 16. Bxc4 {[%clk 0:03:57.3]} 16... Be6
{[%clk 0:04:29.1]} 17. Ne5 {[%clk 0:03:53.1]} 17... Qe7 {[%clk 0:04:23]} 18.
Bxe6+ {[%clk 0:03:43.9]} 18... fxe6 {[%clk 0:04:21.5]} 19. Ng6 {[%clk
0:03:34.1]} 19... Qf6 {[%clk 0:04:17.2]} 20. Nxh8 {[%clk 0:03:31]} 20... Bb4
{[%clk 0:04:14.4]} 21. Qb3 {[%clk 0:03:03.6]} 21... Bxe1 {[%clk 0:04:10]} 22.
Rxe1 {[%clk 0:03:03.2]} 22... g5 {[%clk 0:04:08.8]} 23. Bd2 {[%clk 0:02:42.8]}
23... Qxh8 {[%clk 0:04:05.6]} 24. Rxe6 {[%clk 0:02:38.2]} 24... Qxd4 {[%clk
0:04:00.7]} 25. Bc3 {[%clk 0:02:24.2]} 25... Qd1+ {[%clk 0:03:55.6]} 26. Qxd1
{[%clk 0:02:23.2]} 26... Rxd1+ {[%clk 0:03:54]} 27. Re1 {[%clk 0:02:22.7]} 27...
Rxe1+ {[%clk 0:03:52.3]} 28. Bxe1 {[%clk 0:02:21.7]} 28... Ne7 {[%clk
0:03:49.8]} 29. Bd2 {[%clk 0:02:17.8]} 29... Kd7 {[%clk 0:03:48]} 30. g3 {[%clk
0:02:15.8]} 30... Ke6 {[%clk 0:03:45.8]} 31. Be3 {[%clk 0:02:13.2]} 31... a6
{[%clk 0:03:43.5]} 32. Kg2 {[%clk 0:02:10.2]} 32... Kf5 {[%clk 0:03:42.6]} 33.
Kf3 {[%clk 0:02:09.4]} 33... g4+ {[%clk 0:03:41.2]} 34. Ke2 {[%clk 0:02:07.3]}
34... h5 {[%clk 0:03:39.8]} 35. b4 {[%clk 0:01:58.9]} 35... Nd5 {[%clk
0:03:37.9]} 36. Bd2 {[%clk 0:01:58.1]} 36... Nf6 {[%clk 0:03:27]} 37. Kd3 {[%clk
0:01:49.3]} 37... Ne4 {[%clk 0:03:25.4]} 38. Be3 {[%clk 0:01:46.7]} 38... Nd6
{[%clk 0:03:18.6]} 39. Kd4 {[%clk 0:01:40.3]} 39... Nb5+ {[%clk 0:03:17.3]} 40.
Kc5 {[%clk 0:01:39.5]} 40... Ke4 {[%clk 0:03:08.3]} 41. Kb6 {[%clk 0:01:36.4]}
41... Nd6 {[%clk 0:03:07]} 42. Bf4 {[%clk 0:01:32.3]} 42... Nc4+ {[%clk
0:02:55.1]} 43. Kxb7 {[%clk 0:01:31]} 43... Nxa5+ {[%clk 0:02:54.1]} 44. bxa5
{[%clk 0:01:26.7]} 44... c5 {[%clk 0:02:53.3]} 45. Kxa6 {[%clk 0:01:24]} 45...
c4 {[%clk 0:02:52.4]} 46. Kb7 {[%clk 0:01:23.5]} 1-0

[Event "Live Chess"]
[Site "Chess.com"]
[Date "2023.05.20"]
[Round "-"]
[White "siddu198"]
[Black "OceanFloater"]
[Result "1-0"]
[WhiteElo "1599"]
[BlackElo "997"]
[TimeControl "300"]
[EndTime "13:20:54 PDT"]
[Termination "siddu198 won by resignation"]

1. d4 {[%clk 0:04:58.5]} 1... c5 {[%clk 0:04:57.2]} 2. dxc5 {[%clk 0:04:57.4]}
2... b6 {[%clk 0:04:56.4]} 3. cxb6 {[%clk 0:04:56.6]} 3... axb6 {[%clk
0:04:54.7]} 4. Be3 {[%clk 0:04:55]} 4... Nc6 {[%clk 0:04:51.9]} 5. Nc3 {[%clk
0:04:52.1]} 5... Nf6 {[%clk 0:04:47.8]} 6. Nd5 {[%clk 0:04:51.1]} 6... Nxd5
{[%clk 0:04:46.4]} 7. Qxd5 {[%clk 0:04:50.7]} 7... e6 {[%clk 0:04:44.2]} 8. Qf3
{[%clk 0:04:49.3]} 8... d5 {[%clk 0:04:42.9]} 9. Nh3 {[%clk 0:04:48]} 9... Ne5
{[%clk 0:04:39]} 10. Qf4 {[%clk 0:04:46.4]} 10... Ng6 {[%clk 0:04:36.7]} 11. Qf3
{[%clk 0:04:44.6]} 11... Ne5 {[%clk 0:04:33.7]} 12. Qf4 {[%clk 0:04:41.4]} 12...
Ng6 {[%clk 0:04:26]} 13. Qg3 {[%clk 0:04:36]} 13... Bd6 {[%clk 0:04:23.9]} 14.
Qg4 {[%clk 0:04:34]} 14... e5 {[%clk 0:04:17]} 15. Qh5 {[%clk 0:04:21.6]} 15...
O-O {[%clk 0:04:04.4]} 16. Ng5 {[%clk 0:04:20.4]} 16... Bb4+ {[%clk 0:03:56.6]}
17. c3 {[%clk 0:04:19.2]} 17... Bxc3+ {[%clk 0:03:55.1]} 18. bxc3 {[%clk
0:04:18]} 18... h6 {[%clk 0:03:49.3]} 19. Nf3 {[%clk 0:03:57.8]} 19... e4 {[%clk
0:03:40.7]} 20. Nd4 {[%clk 0:03:53.1]} 20... Ra3 {[%clk 0:03:34.8]} 21. Nf5
{[%clk 0:03:41.5]} 21... Qf6 {[%clk 0:03:24.3]} 22. Nd4 {[%clk 0:03:35.4]} 22...
Rxc3 {[%clk 0:03:21.6]} 23. Qxd5 {[%clk 0:03:02.3]} 23... Rd8 {[%clk 0:03:10.9]}
24. Qxe4 {[%clk 0:02:37.4]} 24... Qe5 {[%clk 0:02:32.6]} 25. Qxe5 {[%clk
0:02:27.9]} 25... Nxe5 {[%clk 0:02:31.2]} 26. Nf3 {[%clk 0:02:21.1]} 26... Bg4
{[%clk 0:02:21.1]} 27. Nxe5 {[%clk 0:02:12.8]} 27... Bf5 {[%clk 0:02:15.7]} 28.
Nd3 {[%clk 0:02:10.8]} 28... Rdc8 {[%clk 0:02:13.6]} 29. f3 {[%clk 0:02:05.9]}
29... Rc2 {[%clk 0:02:09.8]} 30. Rd1 {[%clk 0:01:58.3]} 30... Rxa2 {[%clk
0:02:07.9]} 31. Kf2 {[%clk 0:01:53]} 31... b5 {[%clk 0:02:05.3]} 32. g4 {[%clk
0:01:52.5]} 32... Bg6 {[%clk 0:02:03.7]} 33. Nf4 {[%clk 0:01:47]} 33... Bh7
{[%clk 0:01:55.1]} 34. Bh3 {[%clk 0:01:39.7]} 34... g5 {[%clk 0:01:50.8]} 35.
Nh5 {[%clk 0:01:36.8]} 35... b4 {[%clk 0:01:36.2]} 36. Nf6+ {[%clk 0:01:27.6]}
36... Kg7 {[%clk 0:01:34.8]} 37. Nxh7 {[%clk 0:01:27.2]} 37... Kxh7 {[%clk
0:01:33.8]} 38. Ra1 {[%clk 0:01:23]} 38... Rac2 {[%clk 0:01:23]} 39. Rab1 {[%clk
0:01:17.9]} 39... Rb8 {[%clk 0:01:20.6]} 40. Rb3 {[%clk 0:01:15.7]} 40... Rc3
{[%clk 0:01:18.3]} 41. Rxc3 {[%clk 0:01:12.9]} 41... bxc3 {[%clk 0:01:17.3]} 42.
Rc1 {[%clk 0:01:12]} 42... Rc8 {[%clk 0:01:15.6]} 43. Rc2 {[%clk 0:01:10]} 43...
Kg6 {[%clk 0:01:11.6]} 44. Bd4 {[%clk 0:01:09]} 44... f5 {[%clk 0:01:04.2]} 45.
gxf5+ {[%clk 0:01:06.5]} 45... Kf7 {[%clk 0:01:02.7]} 46. f6 {[%clk 0:01:05.3]}
46... h5 {[%clk 0:00:59]} 47. Bxc8 {[%clk 0:01:01.2]} 1-0

[Event "Live Chess"]
[Site "Chess.com"]
[Date "2023.05.20"]
[Round "-"]
[White "Inglaterra"]
[Black "Iggle-Piggle"]
[Result "1-0"]
[WhiteElo "2061"]
[BlackElo "1254"]
[TimeControl "300"]
[EndTime "13:20:56 PDT"]
[Termination "Inglaterra won by resignation"]

1. e4 {[%clk 0:04:57.5]} 1... e6 {[%clk 0:04:57.7]} 2. d4 {[%clk 0:04:53.9]}
2... d5 {[%clk 0:04:55.3]} 3. Nd2 {[%clk 0:04:53.5]} 3... Nf6 {[%clk 0:04:52.5]}
4. e5 {[%clk 0:04:51.6]} 4... Ng8 {[%clk 0:04:50.7]} 5. f4 {[%clk 0:04:48.4]}
5... c5 {[%clk 0:04:47.7]} 6. c3 {[%clk 0:04:47.7]} 6... Nc6 {[%clk 0:04:44.9]}
7. Ndf3 {[%clk 0:04:46.3]} 7... Qb6 {[%clk 0:04:42.4]} 8. Bd3 {[%clk 0:04:42.8]}
8... Bd7 {[%clk 0:04:37.1]} 9. Ne2 {[%clk 0:04:41]} 9... c4 {[%clk 0:04:32.2]}
10. Bc2 {[%clk 0:04:38.9]} 10... O-O-O {[%clk 0:04:30]} 11. O-O {[%clk
0:04:35.8]} 11... h6 {[%clk 0:04:24.3]} 12. b3 {[%clk 0:04:32.3]} 12... Na5
{[%clk 0:04:06.6]} 13. Be3 {[%clk 0:04:12.6]} 13... f6 {[%clk 0:03:57.1]} 14.
Nd2 {[%clk 0:04:07.5]} 14... fxe5 {[%clk 0:03:46]} 15. fxe5 {[%clk 0:04:03.9]}
15... Ne7 {[%clk 0:03:35.7]} 16. bxc4 {[%clk 0:03:59.4]} 16... Nxc4 {[%clk
0:03:29.8]} 17. Nxc4 {[%clk 0:03:58.2]} 17... dxc4 {[%clk 0:03:25.8]} 18. Rb1
{[%clk 0:03:54.5]} 18... Qc6 {[%clk 0:03:19.2]} 19. Ng3 {[%clk 0:03:36.8]} 19...
a6 {[%clk 0:02:56.7]} 20. Ne4 {[%clk 0:03:14.8]} 20... Nd5 {[%clk 0:02:51.1]}
21. Bd2 {[%clk 0:03:10.5]} 21... g5 {[%clk 0:02:35.1]} 22. Rxf8 {[%clk
0:02:59.5]} 22... Rdxf8 {[%clk 0:02:26.5]} 23. Nd6+ {[%clk 0:02:57.4]} 23... Kb8
{[%clk 0:02:20.9]} 24. Rxb7+ {[%clk 0:02:55.9]} 24... Ka8 {[%clk 0:02:14]} 25.
Be4 {[%clk 0:02:15.6]} 25... Rhg8 {[%clk 0:01:32.3]} 26. Qe2 {[%clk 0:02:09]}
26... Qa4 {[%clk 0:00:58.5]} 27. Rb2 {[%clk 0:01:37.8]} 27... Qa3 {[%clk
0:00:40.4]} 28. Nxc4 {[%clk 0:01:32.3]} 1-0

[Event "Live Chess"]
[Site "Chess.com"]
[Date "2023.05.20"]
[Round "-"]
[White "wadsy27"]
[Black "Singapourfeuj"]
[Result "1-0"]
[WhiteElo "2554"]
[BlackElo "2239"]
[TimeControl "300"]
[EndTime "13:21:10 PDT"]
[Termination "wadsy27 won by checkmate"]

1. d4 {[%clk 0:04:56.7]} 1... Nf6 {[%clk 0:04:58.3]} 2. c4 {[%clk 0:04:55.4]}
2... g6 {[%clk 0:04:56.2]} 3. Nf3 {[%clk 0:04:54]} 3... Bg7 {[%clk 0:04:55.1]}
4. g3 {[%clk 0:04:53.2]} 4... O-O {[%clk 0:04:54.1]} 5. Bg2 {[%clk 0:04:52.8]}
5... d6 {[%clk 0:04:53.4]} 6. Nc3 {[%clk 0:04:50.9]} 6... a6 {[%clk 0:04:52.5]}
7. O-O {[%clk 0:04:48.7]} 7... Nbd7 {[%clk 0:04:51.3]} 8. e4 {[%clk 0:04:44.4]}
8... e5 {[%clk 0:04:49.8]} 9. h3 {[%clk 0:04:37.6]} 9... exd4 {[%clk 0:04:48.5]}
10. Nxd4 {[%clk 0:04:36.3]} 10... Re8 {[%clk 0:04:47.6]} 11. Re1 {[%clk
0:04:35.2]} 11... Nc5 {[%clk 0:04:37.2]} 12. Qc2 {[%clk 0:03:53.6]} 12... Rb8
{[%clk 0:04:30]} 13. Be3 {[%clk 0:03:50.3]} 13... Bd7 {[%clk 0:04:28.5]} 14.
Rad1 {[%clk 0:03:42.4]} 14... Qc8 {[%clk 0:04:26.1]} 15. Kh2 {[%clk 0:03:37.4]}
15... h5 {[%clk 0:04:24]} 16. b4 {[%clk 0:03:29.1]} 16... Ne6 {[%clk 0:04:22.6]}
17. Nd5 {[%clk 0:03:18.3]} 17... Nh7 {[%clk 0:04:18.6]} 18. Nxe6 {[%clk
0:03:06.1]} 18... fxe6 {[%clk 0:04:16]} 19. Nf4 {[%clk 0:03:04]} 19... e5 {[%clk
0:04:05.1]} 20. Nxg6 {[%clk 0:02:59.2]} 20... Be6 {[%clk 0:03:59.9]} 21. c5
{[%clk 0:02:55.5]} 21... Bf7 {[%clk 0:03:48.7]} 22. Nh4 {[%clk 0:02:53.6]} 22...
Qe6 {[%clk 0:03:42.5]} 23. Nf5 {[%clk 0:02:48.1]} 23... dxc5 {[%clk 0:03:35]}
24. Qxc5 {[%clk 0:02:41.9]} 24... Bf8 {[%clk 0:03:27.6]} 25. Qxc7 {[%clk
0:02:38.4]} 25... Rec8 {[%clk 0:03:25.2]} 26. Qa5 {[%clk 0:02:30.5]} 26... b5
{[%clk 0:03:20.4]} 27. Rc1 {[%clk 0:01:54.4]} 27... Qxa2 {[%clk 0:03:16.7]} 28.
Rxc8 {[%clk 0:01:32.4]} 28... Rxc8 {[%clk 0:03:15.7]} 29. Qb6 {[%clk 0:01:31.1]}
29... Qe6 {[%clk 0:03:10.1]} 30. Qb7 {[%clk 0:01:26.9]} 30... h4 {[%clk
0:03:03]} 31. Rd1 {[%clk 0:01:24.8]} 31... hxg3+ {[%clk 0:02:59.3]} 32. fxg3
{[%clk 0:01:24.7]} 32... Rc2 {[%clk 0:02:57.2]} 33. Rd8 {[%clk 0:01:15.6]} 33...
Qa2 {[%clk 0:02:50.3]} 34. Nh4 {[%clk 0:01:01.5]} 34... Qe6 {[%clk 0:01:58.5]}
35. Bc5 {[%clk 0:00:49.8]} 35... Rxc5 {[%clk 0:01:45.1]} 36. bxc5 {[%clk
0:00:48]} 36... Ng5 {[%clk 0:01:44.2]} 37. c6 {[%clk 0:00:27.3]} 37... Qa2
{[%clk 0:01:39.8]} 38. Qe7 {[%clk 0:00:19.1]} 38... Ne6 {[%clk 0:01:34.6]} 39.
c7 {[%clk 0:00:14.9]} 39... Kg7 {[%clk 0:01:26.6]} 40. Rxf8 {[%clk 0:00:13.3]}
40... Nxc7 {[%clk 0:01:20.9]} 41. Nf5+ {[%clk 0:00:11.5]} 41... Kg6 {[%clk
0:01:18]} 42. Rg8+ {[%clk 0:00:10.8]} 42... Bxg8 {[%clk 0:01:16.8]} 43. Qg7+
{[%clk 0:00:10]} 43... Kh5 {[%clk 0:01:15.9]} 44. g4# {[%clk 0:00:09.7]} 1-0

[Event "Live Chess"]
[Site "Chess.com"]
[Date "2023.05.20"]
[Round "-"]
[White "rideuv21"]
[Black "Doge_Dandolo"]
[Result "0-1"]
[WhiteElo "1824"]
[BlackElo "2024"]
[TimeControl "300"]
[EndTime "13:21:23 PDT"]
[Termination "Doge_Dandolo won by resignation"]

1. e4 {[%clk 0:04:59.4]} 1... c6 {[%clk 0:04:58.7]} 2. c4 {[%clk 0:04:58.2]}
2... d5 {[%clk 0:04:57.8]} 3. cxd5 {[%clk 0:04:58.1]} 3... cxd5 {[%clk
0:04:56.7]} 4. exd5 {[%clk 0:04:58]} 4... Nf6 {[%clk 0:04:55.6]} 5. Qa4+ {[%clk
0:04:54.6]} 5... Nbd7 {[%clk 0:04:52.9]} 6. Nc3 {[%clk 0:04:52.6]} 6... g6
{[%clk 0:04:49.5]} 7. Nf3 {[%clk 0:04:51.1]} 7... Bg7 {[%clk 0:04:48.8]} 8. Bc4
{[%clk 0:04:42.9]} 8... O-O {[%clk 0:04:44.1]} 9. d3 {[%clk 0:04:40.2]} 9... a6
{[%clk 0:04:42.6]} 10. Qa3 {[%clk 0:04:34.6]} 10... Rb8 {[%clk 0:04:38.2]} 11.
Bf4 {[%clk 0:04:23.6]} 11... b5 {[%clk 0:04:34.9]} 12. Bxb8 {[%clk 0:04:20.9]}
12... bxc4 {[%clk 0:04:34.1]} 13. Bg3 {[%clk 0:04:19.9]} 13... cxd3 {[%clk
0:04:32.8]} 14. O-O {[%clk 0:04:18.8]} 14... Nb6 {[%clk 0:04:26.4]} 15. Rfd1
{[%clk 0:04:15.4]} 15... Bf5 {[%clk 0:04:23.7]} 16. d6 {[%clk 0:04:12.6]} 16...
exd6 {[%clk 0:04:21.1]} 17. Bxd6 {[%clk 0:04:12.5]} 17... Re8 {[%clk 0:04:18.6]}
18. Nd4 {[%clk 0:04:11.4]} 18... Nc4 {[%clk 0:04:13.9]} 19. Qc5 {[%clk
0:04:05.2]} 19... Nxd6 {[%clk 0:04:11.1]} 20. Nxf5 {[%clk 0:04:04.8]} 20... Nxf5
{[%clk 0:04:09.9]} 21. Rd2 {[%clk 0:03:57.1]} 21... Bh6 {[%clk 0:04:01.1]} 22.
Rdd1 {[%clk 0:03:52]} 22... d2 {[%clk 0:03:54.7]} 23. b4 {[%clk 0:03:49.5]}
23... Qd3 {[%clk 0:03:41.7]} 24. b5 {[%clk 0:03:40.4]} 24... axb5 {[%clk
0:03:39.9]} 25. Nxb5 {[%clk 0:03:40.3]} 25... Ne4 {[%clk 0:03:34.8]} 0-1